bitfinex/quotes_SOLUSD_20241107
["timestamp","ask_amount","ask_price","bid_price","bid_amount"]
[1730987205089,12.46589095,187.02,186.98,6.5688]
[1730987205289,7.98454565,187.02,186.96,24.09034565]
[1730987206385,7.98454565,187.01,186.96,16.1058]
[1730987207072,7.98454565,187.02,186.96,24.09034565]
[1730987211079,7.98454565,187.01,186.96,16.1058]
[1730987212777,0.12549,187.09,186.96,24.09034565]
[1730987212979,7.98454565,187.02,186.96,24.09034565]
[1730987214591,7.98454565,187.0,186.96,16.1058]
[1730987216999,7.98454565,187.01,186.96,16.1058]
[1730987217472,0.12549,187.09,186.98,7.98454565]
[1730987217680,43.776884,187.1,186.99,7.98454565]
[1730987217892,7.98454565,187.03,186.97,7.98454565]
[1730987218096,0.12549,187.09,186.96,16.1058]
[1730987218301,7.98454565,187.0,186.96,16.1058]
[1730987219075,0.12549,187.09,186.96,16.1058]
[1730987219076,7.98454565,186.99,186.96,16.1058]
[1730987219677,7.98454565,187.0,186.96,16.1058]
[1730987220207,7.98454565,187.01,186.96,16.1058]
[1730987221103,7.98454565,187.02,186.96,24.09034565]
[1730987221289,7.98454565,187.01,186.96,16.1058]
[1730987222205,20.0,187.07,186.98,7.98454565]
[1730987222386,7.98454565,187.03,186.98,7.98454565]
[1730987222900,7.98454565,187.03,186.97,7.98454565]
[1730987223587,7.98454565,187.03,186.98,7.98454565]
[1730987223787,7.98454565,187.03,186.97,7.98454565]
[1730987224790,7.98454565,187.02,186.97,7.98454565]
[1730987227009,7.98454565,187.03,186.97,7.98454565]
[1730987227507,7.98454565,187.04,186.98,7.98454565]
[1730987227701,0.12549,187.04,186.99,7.98454565]
[1730987227903,0.12549,187.04,187.0,7.98454565]
[1730987228121,0.12549,187.04,186.99,7.98454565]
[1730987228613,7.98454565,187.04,186.99,7.98454565]
[1730987229588,7.98454565,187.04,186.98,7.98454565]
[1730987229793,7.98454565,187.04,186.99,7.98454565]
[1730987230799,7.98454565,187.03,186.97,7.98454565]
[1730987230986,7.98454565,187.03,186.98,7.98454565]
[1730987231185,7.98454565,187.04,186.98,7.98454565]
[1730987233012,0.12549,187.05,187.0,7.98454565]
[1730987233195,20.0,187.1,187.0,7.98454565]
[1730987233396,6.1245,187.16,187.03,7.98454565]
[1730987233698,6.1245,187.16,186.98,0.1]
[1730987233699,7.98454565,187.11,187.05,7.98454565]
[1730987234012,0.12549,187.1,187.05,7.98454565]
[1730987234386,8.11003565,187.1,187.04,7.98454565]
[1730987234899,7.98454565,187.09,187.03,7.98454565]
[1730987235609,7.98454565,187.08,187.02,7.98454565]
[1730987236510,0.12549,187.15,186.99,21.7256]
[1730987236511,7.98454565,187.09,187.03,7.98454565]
[1730987239611,7.98454565,187.11,187.05,7.98454565]
[1730987239820,7.98454565,187.1,187.04,7.98454565]
[1730987240009,7.98454565,187.09,187.03,7.98454565]
[1730987241211,7.98454565,187.1,187.04,7.98454565]
[1730987241516,7.98454565,187.11,187.05,7.98454565]
[1730987241822,7.98454565,187.1,187.04,7.98454565]
[1730987243305,0.12549,187.14,187.04,7.98454565]
[1730987243512,0.5715274,187.17,187.07,7.98454565]
[1730987243709,7.98454565,187.14,187.07,7.98454565]
[1730987244614,7.98454565,187.15,187.08,7.98454565]
[1730987244813,7.98454565,187.15,187.09,7.98454565]
[1730987245118,7.98454565,187.15,187.08,7.98454565]
[1730987248305,0.5715274,187.17,187.06,21.663]
[1730987248306,0.5715274,187.17,187.09,7.98454565]
[1730987248609,7.98454565,187.16,187.09,7.98454565]
[1730987249994,7.98454565,187.16,187.1,7.98454565]
[1730987251914,7.98454565,187.16,187.11,7.98454565]
[1730987253004,7.98454565,187.16,187.1,7.98454565]
[1730987255805,7.98454565,187.16,187.11,7.98454565]
[1730987256006,7.98454565,187.16,187.1,7.98454565]
[1730987256203,7.98454565,187.15,187.09,7.98454565]
[1730987257307,7.98454565,187.16,187.1,7.98454565]
[1730987260621,7.98454565,187.16,187.09,7.98454565]
[1730987260921,7.98454565,187.13,187.06,23.01132748]
[1730987261232,7.98454565,187.08,187.02,24.42304565]
[1730987261821,7.98454565,187.06,187.02,16.4385]
[1730987262322,7.98454565,187.03,186.98,5.50688734]
[1730987262525,7.98454565,187.03,186.97,29.64044565]
[1730987262896,7.98454565,187.02,186.97,15.0228]
[1730987263096,7.98454565,187.01,186.97,15.0228]
[1730987263705,43.776884,187.09,186.97,23.00734565]
[1730987263900,7.98454565,187.03,186.98,7.98454565]
[1730987264317,7.98454565,187.03,186.97,23.00734565]
[1730987264825,7.98454565,187.05,186.97,15.0228]
[1730987265000,0.12549,187.04,186.99,7.98454565]
[1730987265200,7.98454565,187.05,186.99,7.98454565]
[1730987265406,20.0,187.11,187.0,7.98454565]
[1730987265620,0.12549,187.05,187.0,7.98454565]
[1730987268499,0.12549,187.05,186.99,7.98454565]
[1730987268822,7.98454565,187.05,186.99,7.98454565]
[1730987270530,7.98454565,187.04,186.98,7.98454565]
[1730987273413,7.98454565,187.05,186.99,7.98454565]
[1730987274230,7.98454565,187.04,186.98,7.98454565]
[1730987275219,7.98454565,187.03,186.97,23.00734565]
[1730987275427,7.98454565,187.03,186.97,15.0228]
[1730987275939,7.98454565,187.03,186.97,23.00734565]
[1730987276111,7.98454565,187.04,186.98,7.98454565]
[1730987276445,7.98454565,187.06,187.0,7.98454565]
[1730987276735,8.11003565,187.05,186.99,7.98454565]
[1730987278339,7.98454565,187.03,186.97,15.0228]
[1730987278526,7.98454565,187.01,186.97,15.0228]
[1730987278833,7.98454565,187.02,186.97,15.0228]
[1730987280125,7.98454565,187.02,186.97,23.00734565]
[1730987280327,0.12549,187.09,186.99,7.98454565]
[1730987280328,7.98454565,187.05,186.99,7.98454565]
[1730987284037,8.11003565,187.05,186.99,7.98454565]
[1730987286947,7.98454565,187.04,186.98,7.98454565]
[1730987287460,7.98454565,187.03,186.97,23.00734565]
[1730987288326,7.98454565,187.02,186.97,15.0228]
[1730987289652,7.98454565,187.03,186.97,23.00734565]
[1730987290844,7.98454565,187.05,186.99,7.98454565]
[1730987291050,7.98454565,187.07,187.0,7.98454565]
[1730987291238,7.98454565,187.07,187.01,7.98454565]
[1730987292653,0.12549,187.07,187.02,7.98454565]
[1730987293651,6.362,187.15,187.02,7.98454565]
[1730987293829,7.98454565,187.11,187.05,7.98454565]
[1730987294032,7.98454565,187.12,187.05,7.98454565]
[1730987294430,7.98454565,187.13,187.07,7.98454565]
[1730987294661,0.5715274,187.17,187.08,7.98454565]
[1730987294959,7.98454565,187.14,187.08,7.98454565]
[1730987296153,7.98454565,187.14,187.07,7.98454565]
[1730987296353,7.98454565,187.14,187.08,7.98454565]
[1730987298053,7.98454565,187.13,187.07,7.98454565]
[1730987298248,0.12549,187.16,187.08,7.98454565]
[1730987298249,7.98454565,187.14,187.08,7.98454565]
[1730987299552,0.12549,187.14,187.09,7.98454565]
[1730987299731,7.98454565,187.16,187.1,7.98454565]
[1730987299930,8.55607305,187.17,187.1,7.98454565]
[1730987300153,0.12549,187.16,187.1,7.98454565]
[1730987300337,0.12549,187.16,187.11,7.98454565]
[1730987302558,8.11003565,187.16,187.1,24.07284565]
[1730987303048,0.12549,187.16,187.11,7.98454565]
[1730987304643,8.11003565,187.16,187.1,24.07284565]
[1730987307760,0.12549,187.16,187.11,7.98454565]
[1730987308148,8.11003565,187.16,187.1,24.07284565]
[1730987312844,7.98454565,187.15,187.1,16.0883]
[1730987313688,7.98454565,187.11,187.04,15.073]
[1730987313842,7.98454565,187.1,187.04,23.05754565]
[1730987319251,7.98454565,187.1,187.04,15.073]
[1730987320077,7.98454565,187.1,187.04,23.05754565]
[1730987320662,0.12549,187.1,187.05,7.98454565]
[1730987320871,20.0,187.16,187.07,7.98454565]
[1730987321070,6.6564274,187.17,187.08,7.98454565]
[1730987321071,0.5715274,187.17,187.08,7.98454565]
[1730987321364,7.98454565,187.15,187.09,7.98454565]
[1730987321695,7.98454565,187.13,187.07,7.98454565]
[1730987321969,0.12549,187.11,187.06,7.98454565]
[1730987322151,0.12549,187.11,187.05,7.98454565]
[1730987322643,0.12549,187.11,187.06,7.98454565]
[1730987323951,0.12549,187.11,187.04,15.073]
[1730987323952,0.12549,187.12,187.07,7.98454565]
[1730987324345,0.5715274,187.17,187.08,7.98454565]
[1730987324346,7.98454565,187.14,187.08,7.98454565]
[1730987324539,7.98454565,187.15,187.08,7.98454565]
[1730987324781,0.12549,187.14,187.08,7.98454565]
[1730987324966,7.98454565,187.13,187.06,7.98454565]
[1730987325270,7.98454565,187.12,187.06,7.98454565]
[1730987325473,7.98454565,187.11,187.04,23.05754565]
[1730987325679,7.98454565,187.1,187.04,23.05754565]
[1730987325859,7.98454565,187.09,187.04,15.073]
[1730987326171,7.98454565,187.1,187.04,15.073]
[1730987326377,0.12549,187.14,187.04,15.073]
[1730987326552,7.98454565,187.1,187.04,15.073]
[1730987326753,7.98454565,187.09,187.04,15.073]
[1730987327555,7.98454565,187.08,187.02,5.52180239]
[1730987327761,7.98454565,187.07,187.02,5.52180239]
[1730987327961,7.98454565,187.04,187.02,5.52180239]
[1730987328275,7.98454565,187.03,186.97,7.98454565]
[1730987328477,7.98454565,187.03,186.98,5.51494695]
[1730987328661,7.98454565,187.03,186.96,7.98454565]
[1730987328857,0.12549,187.07,187.0,7.98454565]
[1730987329056,7.98454565,187.06,187.0,7.98454565]
[1730987329373,6.4479,187.08,186.95,21.37102741]
[1730987329374,7.98454565,187.04,186.98,7.98454565]
[1730987329886,7.98454565,187.04,186.95,21.37102741]
[1730987330179,7.98454565,187.04,186.97,7.98454565]
[1730987331168,7.98454565,187.03,186.97,7.98454565]
[1730987331572,7.98454565,187.04,186.97,7.98454565]
[1730987331768,8.11003565,187.05,186.99,7.98454565]
[1730987331969,7.98454565,187.04,186.98,7.98454565]
[1730987332162,0.12549,187.03,186.98,7.98454565]
[1730987332361,0.12549,187.03,186.99,7.98454565]
[1730987332774,0.12549,187.04,186.99,7.98454565]
[1730987333079,0.12549,187.04,187.0,7.98454565]
[1730987333787,8.11003565,187.04,186.96,20.0]
[1730987333959,0.12549,187.01,186.96,5.3487]
[1730987334164,8.11003565,187.01,186.96,5.3487]
[1730987334667,8.11003565,187.01,186.96,18.7205]
[1730987334858,8.11003565,187.01,186.96,45.4641]
[1730987335057,23.902374,187.04,186.99,7.98454565]
[1730987336576,23.902374,187.04,187.0,7.98454565]
[1730987336884,31.88691965,187.05,186.99,7.98454565]
[1730987337962,23.902374,187.05,187.02,7.98454565]
[1730987338162,24.002374,187.06,187.02,7.98454565]
[1730987339061,24.002374,187.06,187.02,13.33144565]
[1730987339462,0.1,187.05,187.01,13.33164565]
[1730987340973,0.1,187.05,186.96,26.7436]
[1730987341173,0.1,187.05,187.01,7.98454565]
[1730987342274,0.1,187.05,186.96,26.7436]
[1730987342275,23.902374,187.06,187.03,7.98454565]
[1730987342489,0.12549,187.06,187.02,5.347]
[1730987342773,6.4479,187.08,187.05,7.98454565]
[1730987342959,6.4479,187.08,187.07,7.98454565]
[1730987343160,0.1,187.12,187.07,7.98454565]
[1730987343464,6.4868,187.13,187.09,7.98454565]
[1730987343661,0.1,187.11,187.08,7.98454565]
[1730987343867,0.1,187.11,187.07,7.98454565]
[1730987344081,0.12549,187.1,187.02,18.7145]
[1730987344410,0.12549,187.1,187.05,7.98454565]
[1730987344411,0.1,187.09,187.05,7.98454565]
[1730987344685,0.22549,187.1,187.06,7.98454565]
[1730987345189,0.1,187.09,187.06,7.98454565]
[1730987345569,23.902374,187.1,187.06,7.98454565]
[1730987345780,0.12549,187.1,187.07,7.98454565]
[1730987347067,0.12549,187.1,187.06,7.98454565]
[1730987347671,0.12549,187.1,187.05,7.98454565]
[1730987347988,0.22549,187.08,187.03,7.98454565]
[1730987348183,0.22549,187.08,187.04,7.98454565]
[1730987349386,0.1,187.07,187.04,7.98454565]
[1730987349586,0.12549,187.08,187.06,7.98454565]
[1730987350679,0.12549,187.08,187.05,7.98454565]
[1730987350868,0.12549,187.08,187.04,7.98454565]
[1730987351290,0.12549,187.08,187.05,7.98454565]
[1730987352882,0.12549,187.08,187.06,7.98454565]
[1730987353090,0.12549,187.08,187.04,7.98454565]
[1730987359097,0.12549,187.08,187.03,7.98454565]
[1730987359590,0.12549,187.08,187.04,7.98454565]
[1730987361092,0.12549,187.08,187.05,7.98454565]
[1730987361588,0.12549,187.08,187.06,7.98454565]
[1730987362380,0.12549,187.08,187.05,7.98454565]
[1730987362784,0.12549,187.06,186.98,15.9418]
[1730987362995,31.88691965,187.06,186.98,15.9418]
[1730987363185,23.902374,187.04,186.99,7.98454565]
[1730987364189,23.902374,187.05,186.99,7.98454565]
[1730987365187,0.12549,187.03,186.99,7.98454565]
[1730987365573,0.12549,187.03,186.96,26.7436]
[1730987365788,0.12549,187.03,186.97,7.98454565]
[1730987366712,8.11003565,187.03,186.97,7.98454565]
[1730987367200,0.12549,187.01,186.97,7.98454565]
[1730987367496,0.12549,187.01,186.96,34.72814565]
[1730987369103,8.11003565,187.01,186.96,26.7436]
[1730987369396,0.12549,186.97,186.93,7.98454565]
[1730987369587,0.12549,186.97,186.9,6.3822]
[1730987369794,0.12549,186.97,186.92,7.98454565]
[1730987370200,8.11003565,186.97,186.88,15.3862]
[1730987370500,0.12549,186.95,186.9,7.98454565]
[1730987371083,0.12549,186.93,186.89,7.98454565]
[1730987371295,0.12549,186.93,186.85,33.3941]
[1730987371490,0.12549,186.93,186.88,7.98454565]
[1730987372184,8.11003565,186.93,186.87,7.98454565]
[1730987372385,23.776884,186.94,186.87,7.98454565]
[1730987372386,23.902374,186.91,186.87,7.98454565]
[1730987372581,23.902374,186.91,186.86,7.98454565]
[1730987373184,23.902374,186.91,186.86,21.36354565]
[1730987373486,23.902374,186.91,186.87,7.98454565]
[1730987373798,31.88691965,186.92,186.87,7.98454565]
[1730987374697,23.902374,186.92,186.88,13.33554565]
[1730987374889,23.902374,186.93,186.88,26.71304565]
[1730987375083,24.002374,186.93,186.88,26.71304565]
[1730987375599,31.98691965,186.93,186.88,18.7285]
[1730987375802,0.22549,186.93,186.89,7.98454565]
[1730987376008,0.22549,186.93,186.88,18.7285]
[1730987376009,0.22549,186.93,186.88,26.71304565]
[1730987376180,0.12549,186.91,186.88,13.3775]
[1730987376381,23.902374,186.91,186.88,13.3775]
[1730987376596,23.902374,186.91,186.88,18.7285]
[1730987376783,23.902374,186.91,186.88,13.3775]
[1730987376976,24.002374,186.92,186.88,13.3775]
[1730987378001,24.002374,186.92,186.88,18.7285]
[1730987379206,0.12549,186.9,186.88,13.3775]
[1730987379376,0.12549,186.9,186.85,7.98454565]
[1730987379377,0.1,186.89,186.85,7.98454565]
[1730987379579,31.98691965,186.88,186.82,26.7625]
[1730987379808,0.12549,186.86,186.83,7.98454565]
[1730987380702,0.12549,186.86,186.82,26.7625]
[1730987380703,0.12549,186.86,186.82,7.98454565]
[1730987380894,0.12549,186.86,186.8,15.082]
[1730987380895,0.12549,186.86,186.83,7.98454565]
[1730987381098,0.12549,186.86,186.84,7.98454565]
[1730987381816,0.12549,186.86,186.83,7.98454565]
[1730987381998,0.12549,186.86,186.84,7.98454565]
[1730987382909,0.1,186.9,186.85,7.98454565]
[1730987383104,0.1,186.9,186.8,47.0201826]
[1730987383105,0.1,186.9,186.86,7.98454565]
[1730987383416,0.12549,186.91,186.86,7.98454565]
[1730987383714,0.1,186.9,186.86,7.98454565]
[1730987385402,0.12549,186.91,186.86,7.98454565]
[1730987385814,0.12549,186.91,186.87,7.98454565]
[1730987386118,0.22549,186.91,186.87,7.98454565]
[1730987386487,0.12549,186.91,186.87,7.98454565]
[1730987388706,0.12549,186.91,186.86,7.98454565]
[1730987388905,0.12549,186.91,186.87,7.98454565]
[1730987389627,0.12549,186.91,186.8,47.0201826]
[1730987389628,0.12549,186.91,186.86,7.98454565]
[1730987390112,0.12549,186.91,186.8,47.0201826]
[1730987390294,0.12549,186.91,186.87,7.98454565]
[1730987390700,0.12549,186.91,186.86,7.98454565]
[1730987390888,0.12549,186.91,186.87,7.98454565]
[1730987391496,0.1,186.9,186.8,47.0201826]
[1730987391697,0.1,186.88,186.8,15.082]
[1730987391903,0.12549,186.87,186.83,7.98454565]
[1730987392405,8.21003565,186.87,186.81,7.98454565]
[1730987392612,0.12549,186.85,186.81,7.98454565]
[1730987392810,0.12549,186.85,186.82,7.98454565]
[1730987393191,0.12549,186.85,186.81,7.98454565]
[1730987393394,0.12549,186.85,186.8,15.082]
[1730987393594,0.12549,186.85,186.82,7.98454565]
[1730987393991,0.12549,186.85,186.83,7.98454565]
[1730987396002,0.12549,186.85,186.8,15.082]
[1730987396202,0.12549,186.85,186.82,7.98454565]
[1730987396399,0.12549,186.85,186.83,7.98454565]
[1730987397210,0.12549,186.85,186.82,7.98454565]
[1730987397414,0.12549,186.85,186.76,22.0165]
[1730987397608,0.12549,186.85,186.8,7.98454565]
[1730987397817,0.22549,186.85,186.8,7.98454565]
[1730987398131,0.12549,186.83,186.8,7.98454565]
[1730987399300,0.12549,186.83,186.81,7.98454565]
[1730987400432,0.12549,186.83,186.8,7.98454565]
[1730987400731,0.12549,186.83,186.81,7.98454565]
[1730987401522,0.12549,186.83,186.8,7.98454565]
[1730987401714,0.12549,186.83,186.79,7.98454565]
[1730987402029,0.12549,186.83,186.8,7.98454565]
[1730987402207,0.12549,186.83,186.82,7.98454565]
[1730987402619,0.12549,186.83,186.81,7.98454565]
[1730987403125,0.12549,186.83,186.82,7.98454565]
[1730987404540,15.182,186.89,186.82,7.98454565]
[1730987404829,29.84427781,186.88,186.83,7.98454565]
[1730987405004,0.22549,186.87,186.79,6.4749]
[1730987405207,0.1,186.86,186.82,7.98454565]
[1730987405402,0.12549,186.85,186.81,7.98454565]
[1730987405606,0.12549,186.83,186.79,7.98454565]
[1730987406004,8.31003565,186.83,186.77,7.98454565]
[1730987406209,8.31003565,186.83,186.76,7.98454565]
[1730987406210,0.12549,186.81,186.76,7.98454565]
[1730987406400,0.12549,186.81,186.71,16.4941]
[1730987406401,0.22549,186.81,186.71,16.4941]
[1730987406606,0.12549,186.79,186.75,7.98454565]
[1730987406805,0.12549,186.77,186.73,7.98454565]
[1730987407443,0.12549,186.77,186.73,12.51200059]
[1730987408736,0.12549,186.77,186.72,12.51200059]
[1730987408946,0.12549,186.77,186.73,12.51200059]
[1730987410137,0.12549,186.77,186.72,12.51200059]
[1730987410534,23.776884,186.76,186.71,12.51200059]
[1730987410745,0.12549,186.75,186.7,12.51200059]
[1730987411042,0.12549,186.75,186.71,12.51200059]
[1730987411538,12.63749059,186.75,186.69,12.51200059]
[1730987411720,0.12549,186.73,186.7,12.51200059]
[1730987412415,0.12549,186.73,186.69,12.51200059]
[1730987412626,0.12549,186.73,186.68,12.51200059]
[1730987412834,12.63749059,186.73,186.68,12.51200059]
[1730987413140,0.12549,186.71,186.68,12.51200059]
[1730987413440,0.12549,186.71,186.67,29.09460059]
[1730987413734,0.12549,186.71,186.67,12.51200059]
[1730987414038,0.12549,186.71,186.64,6.3829]
[1730987414039,0.12549,186.69,186.64,12.51200059]
[1730987414338,0.12549,186.65,186.61,12.51200059]
[1730987414835,0.12549,186.65,186.62,12.51200059]
[1730987415220,0.12549,186.65,186.63,12.51200059]
[1730987415740,0.12549,186.65,186.64,12.51200059]
[1730987416213,0.12549,186.65,186.63,12.51200059]
[1730987417243,23.776884,186.69,186.64,12.51200059]
[1730987417541,23.776884,186.69,186.65,12.51200059]
[1730987417714,0.12549,186.68,186.65,12.51200059]
[1730987418430,0.12549,186.68,186.64,12.51200059]
[1730987418813,0.12549,186.68,186.59,18.55100059]
[1730987418814,12.51200059,186.65,186.59,18.55100059]
[1730987419017,23.876884,186.69,186.58,28.63210059]
[1730987419018,36.41437459,186.64,186.58,28.63210059]
[1730987419241,0.12549,186.6,186.56,12.51200059]
[1730987419815,12.51200059,186.57,186.52,0.5715274]
[1730987420033,23.902374,186.56,186.52,0.5715274]
[1730987420244,24.102374,186.56,186.52,0.5715274]
[1730987420416,36.28888459,186.54,186.52,0.5715274]
[1730987421144,0.12549,186.53,186.52,0.5715274]
[1730987421321,0.12549,186.53,186.52,13.08352799]
[1730987421517,23.902374,186.55,186.52,0.5715274]
[1730987421823,36.41437459,186.55,186.52,0.5715274]
[1730987422145,0.12549,186.55,186.52,13.08352799]
[1730987422345,0.12549,186.55,186.53,12.51200059]
[1730987422643,0.12549,186.55,186.52,13.08352799]
[1730987422821,12.51200059,186.59,186.54,12.51200059]
[1730987423019,23.776884,186.58,186.55,12.51200059]
[1730987423347,0.12549,186.57,186.55,12.51200059]
[1730987423922,12.61200059,186.62,186.56,12.51200059]
[1730987424145,12.51200059,186.62,186.56,12.51200059]
[1730987424441,12.63749059,186.62,186.56,12.51200059]
[1730987424645,0.12549,186.6,186.55,12.51200059]
[1730987424951,12.51200059,186.61,186.55,12.51200059]
[1730987425423,23.902374,186.6,186.55,12.51200059]
[1730987425726,23.902374,186.6,186.56,12.51200059]
[1730987425927,0.12549,186.6,186.56,12.51200059]
[1730987426116,23.902374,186.61,186.57,12.51200059]
[1730987426323,0.12549,186.61,186.56,12.51200059]
[1730987427338,0.12549,186.61,186.57,12.51200059]
[1730987428346,0.12549,186.61,186.56,12.51200059]
[1730987428843,12.63749059,186.61,186.55,12.51200059]
[1730987429036,0.12549,186.59,186.54,12.51200059]
[1730987429237,0.12549,186.57,186.53,12.51200059]
[1730987429447,0.12549,186.57,186.52,13.08352799]
[1730987429631,0.12549,186.57,186.53,12.51200059]
[1730987430332,0.12549,186.57,186.52,13.08352799]
[1730987430542,0.12549,186.57,186.53,12.51200059]
[1730987430943,0.12549,186.57,186.52,13.08352799]
[1730987431753,12.51200059,186.59,186.53,12.51200059]
[1730987432134,0.12549,186.58,186.53,12.51200059]
[1730987432325,0.12549,186.56,186.52,0.5715274]
[1730987432529,0.12549,186.55,186.52,0.5715274]
[1730987432753,0.12549,186.55,186.52,13.08352799]
[1730987433254,0.22549,186.55,186.52,0.5715274]
[1730987433459,0.12549,186.53,186.52,0.5715274]
[1730987434248,0.22549,186.53,186.52,0.5715274]
[1730987434564,0.1,186.5,186.45,15.4817]
[1730987434744,23.902374,186.48,186.45,15.4817]
[1730987435439,0.12549,186.48,186.45,15.4817]
[1730987435647,0.12549,186.48,186.3,12.61200059]
[1730987435648,12.51200059,186.48,186.4,15.478]
[1730987435840,23.776884,186.49,186.4,27.99000059]
[1730987435841,12.63749059,186.45,186.4,27.99000059]
[1730987436056,0.12549,186.43,186.4,27.99000059]
[1730987436531,23.776884,186.46,186.42,12.51200059]
[1730987436729,23.776884,186.48,186.43,12.51200059]
[1730987436955,0.12549,186.47,186.43,12.51200059]
[1730987437338,0.12549,186.47,186.42,12.51200059]
[1730987437540,0.12549,186.47,186.43,12.51200059]
[1730987438363,0.12549,186.47,186.44,12.51200059]
[1730987438850,0.12549,186.47,186.43,12.51200059]
[1730987439051,0.12549,186.47,186.42,12.51200059]
[1730987439745,0.12549,186.45,186.41,12.51200059]
[1730987440236,0.12549,186.45,186.4,15.478]
[1730987440444,23.776884,186.43,186.4,15.478]
[1730987440645,0.12549,186.42,186.4,15.478]
[1730987440830,0.12549,186.42,186.41,12.51200059]
[1730987441234,0.12549,186.43,186.41,12.51200059]
[1730987441535,0.12549,186.43,186.42,12.51200059]
[1730987441843,0.12549,186.43,186.41,12.51200059]
[1730987442254,0.12549,186.43,186.4,15.478]
[1730987442439,12.51200059,186.45,186.4,15.478]
[1730987442642,12.51200059,186.41,186.37,6.0435]
[1730987442840,0.12549,186.4,186.37,18.55550059]
[1730987443041,0.12549,186.4,186.39,12.51200059]
[1730987443234,0.1,186.45,186.37,6.0435]
[1730987443431,0.12549,186.42,186.38,12.51200059]
[1730987443851,0.12549,186.42,186.39,12.51200059]
[1730987444446,0.12549,186.42,186.38,12.51200059]
[1730987444851,0.12549,186.42,186.39,12.51200059]
[1730987445051,0.12549,186.42,186.41,12.51200059]
[1730987445454,17.97420059,186.49,186.41,12.51200059]
[1730987445455,12.61200059,186.49,186.41,12.51200059]
[1730987445763,0.2,186.49,186.44,12.51200059]
[1730987445945,0.32549,186.48,186.44,12.51200059]
[1730987446260,0.2,186.48,186.43,12.51200059]
[1730987446557,0.1,186.47,186.43,12.51200059]
[1730987446766,36.61437459,186.45,186.39,12.51200059]
[1730987447134,0.12549,186.43,186.39,12.51200059]
[1730987447838,0.22549,186.44,186.39,12.51200059]
[1730987448148,0.22549,186.44,186.4,12.51200059]
[1730987449056,0.22549,186.44,186.39,12.51200059]
[1730987449469,0.1,186.43,186.39,12.51200059]
[1730987449638,0.22549,186.44,186.39,12.51200059]
[1730987450762,0.22549,186.44,186.4,12.51200059]
[1730987451647,0.22549,186.44,186.39,12.51200059]
[1730987452262,0.32549,186.44,186.39,12.51200059]
[1730987452440,0.12549,186.42,186.38,12.51200059]
[1730987453740,0.22549,186.42,186.38,12.51200059]
[1730987455166,0.22549,186.42,186.37,12.51200059]
[1730987455964,0.12549,186.4,186.35,12.51200059]
[1730987456868,0.12549,186.4,186.32,6.3992]
[1730987456869,0.12549,186.4,186.37,12.51200059]
[1730987457034,0.12549,186.4,186.36,12.51200059]
[1730987458054,0.12549,186.4,186.38,12.51200059]
[1730987458839,0.12549,186.4,186.37,12.51200059]
[1730987459040,0.12549,186.4,186.39,12.51200059]
[1730987459256,0.12549,186.4,186.38,12.51200059]
[1730987459444,0.22549,186.4,186.35,12.51200059]
[1730987459758,0.22549,186.4,186.36,12.51200059]
[1730987460054,0.22549,186.4,186.37,12.51200059]
[1730987460778,0.12549,186.4,186.37,12.51200059]
[1730987460953,0.12549,186.4,186.38,12.51200059]
[1730987461263,0.2,186.43,186.38,12.51200059]
[1730987461470,0.1,186.42,186.38,12.51200059]
[1730987461642,0.12549,186.42,186.38,12.51200059]
[1730987461846,0.12549,186.4,186.31,15.6172]
[1730987462070,0.22549,186.4,186.35,12.51200059]
[1730987462257,0.1,186.39,186.35,12.51200059]
[1730987462573,0.12549,186.36,186.32,12.51200059]
[1730987462779,0.12549,186.36,186.34,12.51200059]
[1730987462949,0.12549,186.36,186.35,12.51200059]
[1730987463272,0.1,186.42,186.35,12.51200059]
[1730987463446,0.1,186.42,186.31,15.6172]
[1730987463447,23.776884,186.42,186.38,12.51200059]
[1730987463647,12.51200059,186.43,186.38,12.51200059]
[1730987463847,0.1,186.43,186.38,12.51200059]
[1730987464042,0.12549,186.43,186.38,12.51200059]
[1730987464268,12.61200059,186.48,186.42,12.51200059]
[1730987464573,0.1,186.47,186.42,12.51200059]
[1730987464769,12.51200059,186.48,186.42,12.51200059]
[1730987464956,0.12549,186.47,186.42,12.51200059]
[1730987465267,12.73749059,186.47,186.41,12.51200059]
[1730987465566,36.41437459,186.43,186.37,12.51200059]
[1730987465772,23.902374,186.43,186.39,12.51200059]
[1730987466072,23.902374,186.43,186.42,12.51200059]
[1730987466073,0.12549,186.43,186.42,12.51200059]